bitfinex/quotes_BTCUSD_20260315
["timestamp","ask_amount","ask_price","bid_price","bid_amount"]
[1773618060840,0.00010649,72627.0,72621.0,0.0014]
[1773618061054,0.17676452,72635.0,72604.0,0.01240244]
[1773618061265,0.17676452,72633.0,72606.0,0.06886483]
[1773618061492,0.06883828,72636.0,72615.0,5e-05]
[1773618061703,0.2455985,72639.0,72616.0,0.0014]
[1773618061915,0.2455985,72639.0,72616.0,0.18142301]
[1773618062130,0.17676452,72639.0,72616.0,0.18142301]
[1773618062346,0.17676452,72638.0,72617.0,0.0014]
[1773618062574,0.17676452,72638.0,72618.0,0.0014]
[1773618063170,0.17676452,72638.0,72619.0,0.0688525]
[1773618064031,0.0002,72642.0,72619.0,0.0688525]
[1773618064236,0.17676452,72641.0,72619.0,0.0688525]
[1773618064883,0.17676452,72641.0,72620.0,0.11042941]
[1773618065108,0.0002,72642.0,72620.0,0.11042941]
[1773618065300,0.0002,72642.0,72622.0,0.11042941]
[1773618065700,0.17816452,72648.0,72623.0,0.30701625]
[1773618065701,0.17672452,72648.0,72623.0,0.30701625]
[1773618065941,0.06882596,72647.0,72623.0,0.30701625]
[1773618066085,0.17676452,72646.0,72621.0,0.0688506]
[1773618066296,0.17676452,72654.0,72621.0,0.0688506]
[1773618066569,0.17676452,72652.0,72621.0,0.0688506]
[1773618066868,0.17676452,72652.0,72622.0,0.11129978]
[1773618067002,0.17676452,72652.0,72623.0,0.0014]
[1773618067203,0.17676452,72650.0,72624.0,0.06884776]
[1773618068194,0.17676452,72650.0,72617.0,0.06885359]
[1773618068195,0.17676452,72649.0,72617.0,0.06885359]
[1773618068524,0.17676452,72649.0,72610.0,0.06891088]
[1773618068525,0.17676452,72649.0,72616.0,0.06885345]
[1773618069250,0.17676452,72649.0,72610.0,0.06891088]
[1773618069251,0.17676452,72647.0,72610.0,0.06891088]
[1773618069469,0.06882501,72648.0,72605.0,0.06891553]
[1773618069470,0.17676452,72639.0,72605.0,0.06891553]
[1773618069672,0.17676452,72637.0,72605.0,0.06891553]
[1773618069795,0.17676452,72629.0,72605.0,0.06891553]
[1773618069998,0.17676452,72627.0,72605.0,0.06891553]
[1773618070205,0.17676452,72625.0,72600.0,0.06892014]
[1773618070407,0.17676452,72623.0,72602.0,0.06886824]
[1773618070805,0.17676452,72623.0,72600.0,5e-05]
[1773618071028,0.17676452,72623.0,72597.0,0.06887336]
[1773618071565,0.17676452,72621.0,72605.0,5e-05]
[1773618071707,0.17676452,72621.0,72595.0,0.06887526]
[1773618071905,0.1452,72620.0,72595.0,0.06887526]
[1773618072233,0.17676452,72621.0,72594.0,0.00043329]
[1773618072436,0.17676452,72621.0,72594.0,0.06930902]
[1773618072640,0.17676452,72621.0,72595.0,0.13691722]
[1773618072837,0.17676452,72621.0,72594.0,0.06930902]
[1773618073044,0.17676452,72621.0,72595.0,0.13691454]
[1773618073246,0.17676452,72621.0,72596.0,0.13691454]
[1773618073440,0.17676452,72621.0,72594.0,0.06930902]
[1773618073649,0.17676452,72619.0,72595.0,0.13698332]
[1773618073889,0.17676452,72617.0,72596.0,0.13698332]
[1773618074084,0.17676452,72615.0,72591.0,0.07632907]
[1773618074469,0.17526452,72615.0,72591.0,0.07632907]
[1773618075310,0.17526452,72615.0,72591.0,0.00745046]
[1773618075484,0.06885724,72614.0,72591.0,0.00745046]
[1773618075653,0.17676452,72613.0,72591.0,0.00745046]
[1773618075858,0.17676452,72609.0,72585.0,5e-05]
[1773618076258,0.0014,72608.0,72585.0,5e-05]
[1773618076463,0.4906,72595.0,72585.0,5e-05]
[1773618076670,0.0014,72594.0,72585.0,5e-05]
[1773618077069,0.0014,72594.0,72583.0,0.06888609]
[1773618077506,0.0014,72594.0,72580.0,0.06893894]
[1773618077507,0.0014,72593.0,72588.0,0.00022]
[1773618078636,0.55947593,72595.0,72588.0,0.00022]
[1773618078813,0.0014,72592.0,72588.0,0.00022]
[1773618079033,0.0014,72594.0,72588.0,0.00022]
[1773618079579,0.0014,72602.0,72590.0,0.06888001]
[1773618079851,0.0014,72602.0,72591.0,0.18002301]
[1773618080988,0.0014,72601.0,72591.0,0.18002301]
[1773618081192,0.0014,72602.0,72591.0,0.18002301]
[1773618081602,0.06886293,72610.0,72588.0,0.06910165]
[1773618081603,0.17073536,72610.0,72588.0,0.00022]
[1773618081733,0.17676452,72601.0,72588.0,0.00022]
[1773618082076,0.17676452,72601.0,72583.0,0.00010657]
[1773618082077,0.1904191,72597.0,72583.0,0.00010657]
[1773618082274,0.1918191,72596.0,72583.0,0.00010657]
[1773618083278,0.1918191,72596.0,72574.0,0.06889458]
[1773618083474,0.19192553,72596.0,72575.0,0.06916385]
[1773618083676,0.1904191,72594.0,72575.0,0.06916385]
[1773618084185,0.1904191,72594.0,72575.0,0.06911385]
[1773618085580,0.06887716,72593.0,72575.0,0.00022]
[1773618085775,0.1904191,72592.0,72575.0,0.06911406]
[1773618085978,0.1904191,72592.0,72573.0,0.06889601]
[1773618086220,0.1904191,72592.0,72574.0,0.13712708]
[1773618086418,0.1904191,72592.0,72575.0,0.13734708]
[1773618086620,0.1904191,72592.0,72576.0,0.13712708]
[1773618086820,0.1904191,72592.0,72577.0,0.13712708]
[1773618087116,0.1904191,72592.0,72575.0,0.00022]
[1773618087117,0.1904191,72592.0,72578.0,0.13712708]
[1773618087368,0.1904191,72592.0,72575.0,0.00022]
[1773618087369,0.1904191,72592.0,72579.0,0.13712708]
[1773618087553,0.1904191,72592.0,72580.0,0.13712708]
[1773618087751,0.1904191,72590.0,72581.0,0.13712708]
[1773618087950,0.1918191,72589.0,72582.0,0.13712708]
[1773618088184,0.1918191,72589.0,72575.0,0.06911378]
[1773618088404,0.1918191,72589.0,72576.0,0.13706531]
[1773618088605,0.1918191,72589.0,72577.0,0.13706531]
[1773618088807,0.1918191,72589.0,72578.0,0.13706531]
[1773618089024,0.1918191,72589.0,72579.0,0.13706531]
[1773618089269,0.1918191,72589.0,72580.0,0.13706531]
[1773618089483,0.1918191,72589.0,72567.0,0.10994263]
[1773618089698,0.1918191,72589.0,72569.0,0.06889958]
[1773618089895,0.0702819,72588.0,72571.0,0.19414937]
[1773618090104,0.0702819,72588.0,72571.0,0.32034577]
[1773618090326,0.0702819,72588.0,72572.0,0.19414937]
[1773618090738,0.0688819,72588.0,72572.0,0.19414937]
[1773618090946,0.0014,72593.0,72572.0,0.19414937]
[1773618091171,0.06887248,72598.0,72573.0,0.0014]
[1773618091382,0.06885819,72613.0,72574.0,0.19414937]
[1773618091558,0.0014,72612.0,72575.0,0.19414937]
[1773618091900,0.06885819,72615.0,72576.0,0.06889329]
[1773618092106,5e-05,72612.0,72577.0,0.19414937]
[1773618092305,0.1918191,72611.0,72577.0,0.19414937]
[1773618092511,5e-05,72612.0,72580.0,0.17073536]
[1773618092715,5e-05,72612.0,72581.0,0.19414937]
[1773618092940,5e-05,72612.0,72583.0,0.19414937]
[1773618093290,5e-05,72612.0,72576.0,0.06889329]
[1773618093291,0.1904191,72611.0,72585.0,0.19414937]
[1773618093489,0.1904191,72611.0,72587.0,0.19414937]
[1773618093790,5e-05,72612.0,72589.0,0.19414937]
[1773618094167,0.1904691,72612.0,72590.0,0.06888001]
[1773618094774,0.1904691,72612.0,72590.0,0.26302938]
[1773618095208,0.1906691,72612.0,72590.0,0.26302938]
[1773618095742,0.00025,72612.0,72591.0,0.19414937]
[1773618095874,0.0688414,72631.0,72591.0,0.19414937]
[1773618096079,0.0014,72619.0,72591.0,0.19414937]
[1773618096279,0.0014,72619.0,72593.0,0.19414937]
[1773618096280,0.06885269,72619.0,72593.0,0.19414937]
[1773618096504,0.06905217,72620.0,72594.0,0.0014]
[1773618096704,0.06905217,72620.0,72595.0,0.19414937]
[1773618097108,0.23978753,72620.0,72595.0,0.19414937]
[1773618097329,0.1904191,72619.0,72595.0,0.19414937]
[1773618098081,0.1904191,72619.0,72592.0,0.06887811]
[1773618098309,0.1904191,72617.0,72592.0,0.06887811]
[1773618099995,0.1854191,72617.0,72592.0,0.06887811]
[1773618100189,0.1904191,72615.0,72592.0,0.06887811]
[1773618100766,0.25927634,72614.0,72587.0,0.26303222]
[1773618100923,0.25927634,72614.0,72590.0,0.0014]
[1773618101254,0.1904191,72613.0,72590.0,0.0014]
[1773618102315,0.1904191,72613.0,72591.0,0.19414937]
[1773618102533,0.06885724,72614.0,72591.0,0.19414937]
[1773618103010,0.06885724,72614.0,72593.0,0.19414937]
[1773618105068,0.06885063,72621.0,72593.0,0.19414937]
[1773618105069,0.06883857,72634.0,72602.0,0.19414937]
[1773618105281,0.1904191,72656.0,72601.0,0.32034577]
[1773618105282,0.06883775,72635.0,72604.0,0.19414937]
[1773618105709,0.0014,72635.0,72604.0,0.19414937]
[1773618105931,0.0014,72635.0,72606.0,0.19414937]
[1773618106148,0.06883694,72636.0,72606.0,0.19414937]
[1773618106362,0.00010658,72635.0,72606.0,0.19414937]
[1773618106609,0.00010658,72635.0,72611.0,0.19414937]
[1773618106833,0.00010658,72635.0,72613.0,0.19414937]
[1773618107043,0.00010658,72635.0,72615.0,0.19414937]
[1773618107252,5e-05,72637.0,72615.0,0.19414937]
[1773618107454,5e-05,72637.0,72615.0,0.19425595]
[1773618107735,5e-05,72637.0,72616.0,0.10972263]
[1773618107951,5e-05,72637.0,72617.0,0.19414937]
[1773618108885,5e-05,72637.0,72618.0,0.06885345]
[1773618109091,5e-05,72637.0,72619.0,0.19414937]
[1773618109309,5e-05,72637.0,72619.0,0.19531339]
[1773618109514,5e-05,72640.0,72619.0,0.19531339]
[1773618109705,0.06882809,72645.0,72619.0,0.19531339]
[1773618110034,0.06882388,72650.0,72619.0,0.19531339]
[1773618110292,0.0014,72646.0,72619.0,0.19531339]
[1773618110641,0.06881448,72660.0,72630.0,0.17073536]
[1773618110839,0.06881448,72660.0,72618.0,0.06885345]
[1773618110840,0.06881459,72659.0,72626.0,0.19414937]
[1773618111090,0.1904191,72655.0,72628.0,0.19414937]
[1773618111292,0.06881104,72663.0,72629.0,0.0014]
[1773618111496,0.1904191,72660.0,72631.0,0.19414937]
[1773618112165,0.0014,72659.0,72631.0,0.19414937]
[1773618113295,0.06881554,72658.0,72633.0,0.18740729]
[1773618113929,0.06881554,72658.0,72635.0,0.18740729]
[1773618114198,0.06881554,72658.0,72635.0,0.18725984]
[1773618115239,0.06881554,72658.0,72636.0,0.06883638]
[1773618115512,0.0002,72660.0,72637.0,0.18740729]
[1773618115924,0.06901387,72660.0,72637.0,0.18740729]
[1773618116651,0.06936894,72660.0,72637.0,0.18740729]
[1773618117503,0.06936894,72660.0,72638.0,0.06883449]
[1773618117729,0.06936894,72660.0,72639.0,0.18740729]
[1773618117849,0.06936894,72660.0,72640.0,0.0014]
[1773618118074,0.06936894,72660.0,72641.0,0.18740729]
[1773618118579,0.06936894,72660.0,72642.0,0.0014]
[1773618118771,0.06936894,72660.0,72642.0,0.18880729]
[1773618119173,0.23924512,72680.0,72642.0,0.18880729]
[1773618119174,0.06938581,72667.0,72642.0,0.18880729]
[1773618119485,0.06938581,72667.0,72636.0,0.06883638]
[1773618119486,0.06883749,72688.0,72650.0,0.17044969]
[1773618119690,0.06883749,72688.0,72655.0,0.3219789]
[1773618119691,0.06879471,72681.0,72655.0,0.3219789]
[1773618119847,0.06879471,72681.0,72650.0,0.00035507]
[1773618119848,0.19244059,72674.0,72656.0,0.0014]
[1773618120048,0.19244059,72674.0,72657.0,0.0014]
[1773618120291,0.06879471,72680.0,72652.0,0.18740729]
[1773618120496,0.06879471,72680.0,72657.0,0.0014]
[1773618120497,0.19244059,72678.0,72657.0,0.0014]
[1773618120787,0.0014,72676.0,72658.0,0.0014]
[1773618121077,0.06879471,72680.0,72660.0,0.18740729]
[1773618121227,0.06879471,72680.0,72661.0,0.0014]
[1773618121953,0.06879471,72680.0,72663.0,0.18740729]
[1773618122155,0.00025,72675.0,72663.0,0.18740729]
[1773618123081,0.0002,72683.0,72663.0,0.18740729]
[1773618123353,5e-05,72688.0,72663.0,0.18740729]
[1773618123564,0.07070856,72696.0,72662.0,0.06881175]
[1773618123565,0.0001119,72703.0,72672.0,0.319706]
[1773618123746,0.07297657,72700.0,72673.0,0.18880729]
[1773618123872,0.07297657,72700.0,72675.0,0.18740729]
[1773618124274,0.06877673,72699.0,72675.0,0.18740729]
[1773618124493,0.06877673,72699.0,72676.0,0.0014]
[1773618124494,0.19244059,72698.0,72676.0,0.0014]
[1773618124676,0.00010646,72698.0,72677.0,0.18740729]
[1773618125170,0.0688061,72721.0,72676.0,0.0014]
[1773618125328,5e-05,72721.0,72697.0,0.17044969]
[1773618125536,5e-05,72721.0,72681.0,0.3219789]
[1773618125537,5e-05,72721.0,72698.0,0.18880729]
[1773618125685,5e-05,72721.0,72700.0,0.18740729]
[1773618125686,0.0687569,72720.0,72700.0,0.18740729]
[1773618125885,0.06880925,72718.0,72701.0,0.0014]
[1773618126108,0.0014,72717.0,72693.0,0.06878241]
[1773618126435,0.0014,72717.0,72695.0,0.18740729]
[1773618126681,5e-05,72718.0,72695.0,0.18740729]
[1773618126909,0.0014,72732.0,72695.0,0.18740729]
[1773618126910,0.16397664,72751.0,72711.0,0.18740729]
[1773618127123,0.16397664,72751.0,72702.0,0.3219789]
[1773618127124,0.19244059,72747.0,72712.0,0.0014]
[1773618127329,0.19244059,72747.0,72713.0,0.0014]
[1773618127531,0.19244059,72747.0,72714.0,0.0014]
[1773618127663,0.19244059,72747.0,72715.0,0.0014]
[1773618127870,0.19244059,72745.0,72717.0,0.06875971]
[1773618128077,0.19244059,72745.0,72715.0,0.06875971]
[1773618128279,0.19244059,72745.0,72716.0,0.0014]
[1773618128479,0.19244059,72745.0,72716.0,0.07016065]
[1773618128689,0.19244059,72745.0,72711.0,0.0014]
[1773618128895,0.19244059,72745.0,72704.0,0.18740729]
[1773618129099,0.19244059,72745.0,72703.0,0.05137796]
[1773618129100,0.19244059,72745.0,72706.0,0.18740729]
[1773618130123,0.06873419,72744.0,72711.0,0.18740729]
[1773618130434,0.19244059,72743.0,72712.0,0.0014]
[1773618130869,0.19244059,72743.0,72710.0,0.18740729]
[1773618131060,0.19244059,72743.0,72711.0,0.0014]
[1773618131263,0.19244059,72743.0,72710.0,0.0014]
[1773618131467,0.17044969,72730.0,72704.0,0.00687059]
[1773618131593,0.19384059,72729.0,72705.0,0.06877106]
[1773618131790,0.19244059,72727.0,72704.0,0.00687059]
[1773618132033,0.19244059,72723.0,72701.0,0.0014]
[1773618132210,0.19244059,72723.0,72691.0,0.0687843]
[1773618132432,0.06875309,72724.0,72695.0,0.18740729]
[1773618132628,0.0014,72722.0,72695.0,0.18740729]
[1773618132829,0.19244059,72721.0,72691.0,0.0701843]
[1773618133042,0.21028489,72719.0,72691.0,0.0701843]
[1773618133211,0.19244059,72718.0,72691.0,0.0701843]
[1773618134089,0.19244059,72718.0,72692.0,0.0014]
[1773618134090,0.19244059,72716.0,72692.0,0.0014]
[1773618134280,0.0014,72715.0,72686.0,0.0687884]
[1773618134449,0.19244059,72714.0,72691.0,0.0014]
[1773618134687,0.0014,72715.0,72691.0,0.0014]
[1773618135275,0.0014,72715.0,72691.0,0.18880729]
[1773618135720,0.0014,72715.0,72686.0,0.0687884]
[1773618135920,0.0014,72715.0,72686.0,0.06878855]
[1773618135921,0.19244059,72714.0,72686.0,0.06878855]
[1773618136131,0.2790446,72719.0,72685.0,0.06883903]
[1773618136132,0.35641723,72737.0,72701.0,0.3219789]
[1773618136305,0.0687408,72737.0,72703.0,0.18740729]
[1773618136507,0.19384059,72736.0,72704.0,0.0014]
[1773618136681,0.19384059,72736.0,72703.0,0.18740729]
[1773618136889,0.16537664,72736.0,72704.0,0.0014]
[1773618137084,0.19244059,72735.0,72705.0,0.18740729]
[1773618137469,0.0014,72734.0,72706.0,0.0014]
[1773618137617,0.16397664,72736.0,72707.0,0.18740729]
[1773618137802,0.2330721,72737.0,72707.0,0.18740729]
[1773618137999,0.2330721,72737.0,72708.0,0.06876822]
[1773618138291,0.19244059,72734.0,72706.0,0.06876822]
[1773618138461,0.19244059,72732.0,72709.0,0.0014]
[1773618138813,0.35641723,72732.0,72709.0,0.0014]
[1773618139209,0.35641723,72732.0,72706.0,0.06876822]
[1773618139210,0.16397664,72730.0,72706.0,0.06876822]
[1773618139469,0.16397664,72730.0,72707.0,0.0014]
[1773618140203,0.23272406,72730.0,72708.0,0.06876822]
[1773618140374,0.06874742,72730.0,72707.0,0.06876822]
[1773618140622,0.19244059,72728.0,72708.0,0.0014]
[1773618140781,0.16397664,72731.0,72710.0,0.18740729]
[1773618140942,0.16397664,72731.0,72704.0,0.068772]
[1773618140943,0.19244059,72731.0,72711.0,0.0014]
[1773618141142,0.16397664,72730.0,72711.0,0.0014]
[1773618141392,0.19244059,72731.0,72704.0,0.068772]
[1773618141393,0.16397664,72729.0,72704.0,0.068772]
[1773618141600,0.16397664,72729.0,72705.0,0.0014]
[1773618142130,0.06874742,72730.0,72706.0,0.06877011]
[1773618142342,0.17506776,72729.0,72706.0,0.06877011]
[1773618142818,0.17506776,72729.0,72707.0,0.0014]
[1773618143017,0.17506776,72729.0,72708.0,0.0014]
[1773618143166,0.06874742,72730.0,72706.0,0.06877011]
[1773618143369,0.0014,72736.0,72706.0,0.06877011]
[1773618143370,0.06873513,72743.0,72711.0,0.18765616]
[1773618143570,0.06873513,72743.0,72711.0,0.18801082]
[1773618144223,0.06873513,72743.0,72713.0,0.18765616]
[1773618146344,0.06873513,72745.0,72714.0,0.06876254]
[1773618146549,0.06873513,72745.0,72716.0,0.18765616]
[1773618147320,0.17506776,72743.0,72717.0,0.0014]
[1773618147825,0.06873513,72745.0,72717.0,0.18905616]
[1773618148227,0.06873608,72742.0,72717.0,0.18765616]
[1773618148428,0.0002,72743.0,72718.0,0.0014]
[1773618148651,0.34554664,72780.0,72722.0,0.18765616]
[1773618148652,0.06873164,72747.0,72722.0,0.18765616]
[1773618148849,0.06873164,72747.0,72721.0,0.31028087]
[1773618148850,0.28466529,72746.0,72723.0,0.0014]
[1773618149032,0.45973305,72746.0,72724.0,0.0014]
[1773618149869,0.17506776,72745.0,72725.0,0.0014]
[1773618150069,0.17506776,72745.0,72711.0,0.00035466]
[1773618150070,0.17506776,72739.0,72713.0,0.0687628]
[1773618150279,0.06873986,72738.0,72716.0,0.0014]
[1773618150548,0.17506776,72737.0,72711.0,0.06911964]
[1773618150726,0.17506776,72737.0,72717.0,0.0014]
[1773618150939,0.17506776,72737.0,72711.0,0.06911964]
[1773618150940,0.17506776,72737.0,72711.0,0.00035466]
[1773618151143,0.17506776,72737.0,72711.0,0.00175466]
[1773618152128,0.17506776,72737.0,72711.0,0.00035466]
[1773618152331,0.17506776,72728.0,72702.0,0.0014]
[1773618152498,0.17506776,72726.0,72702.0,0.00150642]
[1773618152918,0.17506776,72726.0,72702.0,0.00010642]
[1773618153121,0.17506776,72726.0,72703.0,0.0014]
[1773618154134,0.17044969,72720.0,72702.0,0.00010642]
[1773618154436,0.24382747,72717.0,72702.0,0.00150642]
[1773618154665,0.24382747,72717.0,72694.0,0.18765616]
[1773618154666,0.06875971,72717.0,72694.0,0.18765616]
[1773618154858,0.06875971,72717.0,72696.0,0.25643384]
[1773618155385,0.06875971,72717.0,72697.0,0.0014]
[1773618156213,0.06875971,72717.0,72693.0,0.34067876]
[1773618156214,0.17506776,72716.0,72695.0,0.0014]
[1773618156360,0.17506776,72714.0,72695.0,0.07017975]
[1773618156771,0.0687616,72715.0,72695.0,0.07017975]
[1773618156972,0.0687616,72715.0,72696.0,0.18765616]
[1773618157530,0.0687616,72715.0,72703.0,0.00022]
[1773618157685,0.0687616,72715.0,72704.0,0.0014]
[1773618157883,0.27504352,72719.0,72704.0,0.0014]
[1773618158084,0.06874553,72732.0,72705.0,0.18765616]
[1773618158406,0.06910025,72732.0,72706.0,0.06877011]
[1773618158560,0.06910025,72732.0,72707.0,0.18765616]
[1773618159362,0.06910025,72732.0,72709.0,0.18765616]
[1773618160421,0.06910025,72732.0,72711.0,0.25642154]
[1773618160799,0.06910025,72732.0,72712.0,0.18765616]
[1773618162942,0.06910025,72732.0,72713.0,0.25781965]
[1773618163830,0.06910025,72732.0,72711.0,0.06876349]
[1773618163831,0.0014,72731.0,72714.0,0.0014]
[1773618164035,0.17646776,72731.0,72711.0,0.0014]
[1773618165031,0.24381518,72730.0,72711.0,0.07016508]
[1773618165434,0.24381518,72730.0,72711.0,0.06876508]
[1773618165637,0.17506776,72729.0,72703.0,0.00022]
[1773618166760,0.17506776,72729.0,72704.0,0.0014]
[1773618166929,0.17506776,72727.0,72704.0,0.0014]
[1773618167523,0.17506776,72727.0,72703.0,1e-08]
[1773618168959,0.17506776,72725.0,72703.0,1e-08]
[1773618169204,0.17646776,72724.0,72703.0,1e-08]
[1773618170387,0.17646776,72724.0,72700.0,0.0014]
[1773618170946,0.06875403,72723.0,72700.0,0.0014]
[1773618171170,0.17506776,72722.0,72700.0,0.0014]
[1773618171495,0.06875403,72723.0,72701.0,0.18765616]
[1773618172004,0.0014,72722.0,72701.0,0.18765616]
[1773618172214,0.06875403,72723.0,72701.0,0.18765616]
[1773618172579,0.06875403,72723.0,72701.0,0.10972263]
[1773618172803,0.06875403,72723.0,72702.0,0.18893684]
[1773618173614,0.06875403,72725.0,72704.0,0.18296809]
[1773618174186,0.06875403,72726.0,72704.0,0.18296809]
[1773618175617,0.06875403,72726.0,72705.0,0.06877106]
[1773618175817,0.06875403,72726.0,72706.0,0.18296809]
[1773618176016,0.06875403,72726.0,72707.0,0.0014]
[1773618176659,0.06875403,72726.0,72705.0,0.06877106]
[1773618176866,0.18052431,72725.0,72706.0,0.0014]
[1773618177068,0.18052431,72725.0,72705.0,0.06877106]
[1773618177274,0.18052431,72725.0,72706.0,0.0014]
[1773618177528,0.18052431,72725.0,72707.0,0.0014]
[1773618177827,0.2492774,72724.0,72707.0,0.0014]
[1773618178764,0.06875309,72724.0,72706.0,0.18436809]
[1773618180168,0.06875309,72724.0,72706.0,0.2531375]
[1773618180374,0.06875309,72724.0,72707.0,0.0014]
[1773618180375,0.18052431,72723.0,72707.0,0.0014]
[1773618181340,0.0014,72722.0,72707.0,0.0014]
[1773618182162,0.06875593,72721.0,72707.0,0.0014]
[1773618182617,0.06875593,72721.0,72707.0,0.00105108]
[1773618183576,0.06875593,72721.0,72704.0,0.06877188]
[1773618183781,0.06875593,72721.0,72707.0,0.0014]
[1773618184689,0.06875593,72721.0,72707.0,0.0701686]
[1773618184916,0.06875593,72721.0,72707.0,0.0014]
[1773618185953,0.06875593,72721.0,72707.0,0.07016905]
[1773618186301,0.06875593,72721.0,72707.0,0.0014]
[1773618187858,0.18052431,72720.0,72706.0,0.0014]
[1773618188163,0.06875593,72721.0,72702.0,0.0014]
[1773618188164,0.18052431,72718.0,72702.0,0.0014]
[1773618188516,0.18052431,72718.0,72698.0,0.17851726]
[1773618189061,0.18052431,72718.0,72699.0,0.0014]
[1773618190227,0.18052431,72716.0,72699.0,0.0014]
[1773618190448,0.18192431,72715.0,72699.0,0.07017645]
[1773618191097,0.18192431,72715.0,72699.0,0.06877645]
[1773618191648,0.18167512,72715.0,72699.0,0.06877645]
[1773618192241,0.06876254,72714.0,72699.0,0.06877645]
[1773618193462,0.06876254,72714.0,72700.0,0.18296809]
[1773618193879,0.06858562,72714.0,72700.0,0.18296809]
[1773618194638,0.06858562,72714.0,72698.0,0.07017709]
[1773618195351,0.18052431,72711.0,72699.0,0.00022]
[1773618195514,0.06998562,72714.0,72697.0,0.0014]
[1773618195810,0.18052431,72713.0,72697.0,0.0014]
[1773618196520,0.18052431,72713.0,72691.0,0.36171182]
[1773618196727,0.18052431,72711.0,72691.0,0.10995963]
[1773618197085,0.18052431,72711.0,72691.0,0.00022]
[1773618197287,0.18052431,72711.0,72685.0,0.11000963]
[1773618197512,0.18052431,72711.0,72684.0,0.00027]
[1773618197513,0.18052431,72711.0,72684.0,0.1099308]
[1773618197697,0.18052431,72709.0,72680.0,0.00145]
[1773618197898,0.17019866,72710.0,72677.0,0.0014]
[1773618197899,0.18052431,72707.0,72677.0,0.0014]
[1773618198508,0.18052431,72707.0,72677.0,0.18436809]
[1773618198922,0.18052431,72705.0,72677.0,0.07030362]
[1773618199127,0.18052431,72705.0,72678.0,0.18296809]
[1773618199851,0.18034735,72705.0,72678.0,0.18296809]
[1773618201257,0.18052431,72703.0,72677.0,0.00010646]
[1773618201456,0.1803474,72703.0,72677.0,0.00010646]
[1773618202308,0.0014,72702.0,72677.0,0.1828941]
[1773618202517,0.18231458,72701.0,72677.0,0.1842941]
[1773618202895,0.18231458,72701.0,72677.0,0.18394535]
[1773618203165,0.06877579,72700.0,72677.0,0.18394535]
[1773618203364,0.18231458,72699.0,72677.0,0.18394535]
[1773618203970,0.18126902,72699.0,72677.0,0.18394535]
[1773618204800,0.18126902,72699.0,72677.0,0.0014]
[1773618205231,0.18126902,72699.0,72677.0,0.00162]
[1773618205401,0.18231458,72697.0,72677.0,0.00162]
[1773618205568,0.18231458,72695.0,72677.0,0.00162]
[1773618207216,0.18231458,72695.0,72677.0,0.00022]
[1773618207631,0.18231458,72693.0,72672.0,0.0014]
[1773618207789,0.1824209,72693.0,72669.0,0.18278764]
[1773618207995,0.18231458,72692.0,72664.0,0.06880964]
[1773618208217,0.18231458,72692.0,72663.0,0.06903056]
[1773618208218,0.18231458,72692.0,72666.0,0.0014]
[1773618208625,0.18231458,72692.0,72667.0,0.0014]
[1773618209627,0.0687843,72691.0,72668.0,0.0014]
[1773618209812,0.18371458,72690.0,72668.0,0.0014]
[1773618210488,0.18371458,72690.0,72664.0,0.25159731]
[1773618211259,0.18231458,72690.0,72665.0,0.18278764]
[1773618211504,0.0687843,72691.0,72665.0,0.18278764]
[1773618211678,0.00010632,72693.0,72667.0,0.18278764]
[1773618212080,0.06877805,72698.0,72668.0,0.0014]
[1773618212329,0.06877805,72698.0,72669.0,0.18278764]
[1773618212330,0.07017805,72698.0,72669.0,0.18278764]
[1773618213563,0.18231458,72697.0,72671.0,0.18278764]
[1773618214077,0.18231458,72697.0,72668.0,0.06891221]
[1773618214078,0.18231458,72695.0,72668.0,0.06891221]
[1773618214271,0.18231458,72695.0,72672.0,0.0014]
[1773618214474,0.18231458,72695.0,72669.0,0.06880323]
[1773618214475,0.18231458,72695.0,72673.0,0.0014]
[1773618215023,0.18231458,72695.0,72668.0,0.25191985]
[1773618215024,0.18231458,72695.0,72672.0,0.0014]
[1773618215614,0.18231458,72695.0,72670.0,0.0014]
[1773618215815,0.18231458,72695.0,72671.0,0.001]
[1773618216042,0.06878146,72694.0,72671.0,0.001]
[1773618216217,0.18231458,72693.0,72670.0,0.0014]
[1773618216485,0.06878146,72694.0,72670.0,0.0014]
[1773618216486,0.18231458,72691.0,72672.0,0.001]
[1773618216659,0.0014,72690.0,72673.0,0.18278764]
[1773618216854,0.06878146,72694.0,72673.0,0.18278764]
[1773618217004,0.0014,72690.0,72673.0,0.18278764]
[1773618217623,0.0014,72690.0,72673.0,0.00622093]
[1773618218254,0.06878619,72689.0,72674.0,0.06880039]
[1773618218458,0.06843217,72689.0,72674.0,0.06880039]
[1773618218664,0.06843217,72689.0,72674.0,0.06380039]
[1773618219541,0.0687833,72693.0,72674.0,0.06380039]
[1773618219746,0.06877867,72697.0,72675.0,0.09863483]
[1773618220186,0.06876516,72712.0,72675.0,0.09863483]
[1773618220187,0.0014,72704.0,72676.0,0.0687985]
[1773618220401,0.0014,72704.0,72677.0,0.10003483]
[1773618220698,0.06877038,72706.0,72677.0,0.10003483]
[1773618221916,0.07017038,72706.0,72677.0,0.10003483]
[1773618222259,0.25248496,72706.0,72677.0,0.10003483]
[1773618222559,0.25248496,72706.0,72679.0,0.10198637]
[1773618223588,0.07037038,72706.0,72679.0,0.10198637]
[1773618223806,0.0002,72707.0,72680.0,0.17019866]
[1773618224006,0.06876478,72712.0,72681.0,0.10180691]
[1773618224411,0.06876417,72713.0,72682.0,0.06879282]
[1773618224609,0.06876417,72713.0,72683.0,0.10162721]
[1773618224808,0.0002,72714.0,72685.0,0.10162721]
[1773618225966,0.18231458,72713.0,72685.0,0.10162721]
[1773618226170,0.18231458,72713.0,72687.0,0.10203925]
[1773618226521,0.25107902,72712.0,72689.0,0.10185758]
[1773618227540,0.25107902,72712.0,72690.0,0.0014]
[1773618227747,0.25107902,72712.0,72692.0,0.10167568]
[1773618228204,0.06876444,72712.0,72692.0,0.10167568]
[1773618228384,0.18231458,72711.0,72691.0,0.29407744]
[1773618228524,0.18231458,72709.0,72691.0,0.36286137]
[1773618228736,0.18231458,72709.0,72688.0,0.0014]
[1773618228935,0.18231458,72709.0,72692.0,0.001]
[1773618229166,0.18231458,72709.0,72688.0,0.00150632]
[1773618229566,0.18231458,72709.0,72691.0,0.001]
[1773618229974,0.18231458,72709.0,72688.0,0.00150632]
[1773618230165,0.18231458,72709.0,72692.0,0.001]
[1773618230365,0.18231458,72709.0,72688.0,0.00150632]
[1773618230366,0.18231458,72709.0,72688.0,0.00010632]
[1773618230565,0.18231458,72709.0,72686.0,0.0014]
[1773618230566,0.18231458,72707.0,72686.0,0.0014]
[1773618230761,0.18231458,72707.0,72678.0,0.06879639]
[1773618230762,0.182421,72707.0,72676.0,0.0687985]
[1773618230962,0.182421,72707.0,72677.0,0.0014]
[1773618231166,0.182421,72707.0,72678.0,0.0014]